Cogmind - Beta 15 @@@ ROGUE MODE // 2025.08.26 @ 23:55:53 Player: polar Result: Destroyed by Optimus with Helical Railgun Performance ------------- Evolutions (0) 0 Regions Visited (4) 800 Robots Destroyed (28) 140 Value Destroyed (788) 788 Prototype IDs (17) 340 Alien Tech Used (0) 0 Bonus (765) 765 TOTAL SCORE: 2833 Bonus ------- Registered with UFD 300 Met Optimus in HQ 500 Friendly Fire -35 Cogmind --------- Core Integrity 0/250 Matter 300/300 Energy 98/100 System Corruption 0% Temperature Cool (6) Movement Rolling (135) Ox3 Location -9/Scraptown Parts ------- > --- POWER (1) -------- (None) > --- PROPULSION (2) --- Wheel Compact Wheel > --- UTILITY (2) ------ Huge Storage Unit Targeting Computer > --- WEAPON (2) ------- Shock Rifle Ripper > --- INVENTORY (25) --- Carbon-fiber Leg Carbon-fiber Leg Carbon-fiber Leg Carbon-fiber Leg Flexi-carbon Leg Advanced Heat Sink Medium Storage Unit Large Storage Unit Improved Sensor Array Improved Terrain Scanner Advanced Targeting Computer Weapon Cycler Hacking Suite Authchip [Propulsion] Authchip [Propulsion] Authchip [Device] Authchip [Armor] Authchip [Weapon] Powered Cannon Gauss Rifle Gauss Rifle Plasma Cutter CPS Tube (2) Multitool Peak State ------------ > --- POWER ------------ Ion Engine > --- PROPULSION ------- Flexi-carbon Leg Compact Wheel > --- UTILITY ---------- Huge Storage Unit Targeting Computer > --- WEAPON ----------- Shock Rifle Ripper > --- INVENTORY -------- Carbon-fiber Leg Carbon-fiber Leg Carbon-fiber Leg Carbon-fiber Leg Advanced Heat Sink Medium Storage Unit Large Storage Unit Improved Sensor Array Improved Terrain Scanner Advanced Targeting Computer Weapon Cycler Hacking Suite Authchip [Propulsion] Authchip [Propulsion] Authchip [Device] Authchip [Armor] Authchip [Weapon] Powered Cannon Gauss Rifle Gauss Rifle Plasma Cutter CPS Tube Multitool [Rating: 24] Favorites ----------- Power Subdweller Power Source Engine Subdweller Power Source Propulsion Light Treads Treads Light Treads Leg Flexi-carbon Leg Wheel Compact Wheel Utility Targeting Computer Device Improved Terrain Scanner Storage Medium Storage Unit Processor Targeting Computer Weapon Ripper Energy Gun EM Pulse Gun Energy Cannon Beam Cannon Ballistic Gun Subdweller Machine Gun Special Weapon Mining Laser Slashing Weapon Ripper Build | -11 -10 -10 -9 -9 ------- Run | Yrd Mat Sub Rec Scr Slots Evolved . | . . . . . Power . | . . . . . Propulsion . | . . . . . Utility . | . . . . . Weapon . | . . . . . Parts Attached 37 | 7 6 13 6 5 Power 6 | 1 . 3 . 2 Engine 6 | 1 . 3 . 2 Core . | . . . . . Reactor . | . . . . . Propulsion 14 | 2 2 4 4 2 Treads 6 | . . 3 3 . Leg 1 | . . . . 1 Wheel 7 | 2 2 1 1 1 Hover . | . . . . . Flight . | . . . . . Utility 5 | 2 2 . 1 . Device 1 | 1 . . . . Storage 3 | 1 1 . 1 . Processor 1 | . 1 . . . Hackware . | . . . . . Protection . | . . . . . Artifact . | . . . . . Weapon 12 | 2 2 6 1 1 Energy Gun 2 | 1 . . . 1 Energy Cannon 3 | . 1 2 . . Ballistic Gun 4 | 1 . 3 . . Ballistic Cannon . | . . . . . Launcher . | . . . . . Special Weapon 2 | . 1 . 1 . Impact Weapon . | . . . . . Slashing Weapon 1 | . . 1 . . Piercing Weapon . | . . . . . Special Melee Weapon . | . . . . . Unidentified Prototypes . | . . . . . Parts Lost 5 | . . 4 . 1 Power 2 | . . 1 . 1 Propulsion 2 | . . 2 . . Utility . | . . . . . Weapon 1 | . . 1 . . Highest Loss Streak 1 | . . 1 . 1 To Critical Strikes . | . . . . . Average Backups 13 | 6 7 8 10 19 Power . | . . . . . Propulsion 1 | 4 2 1 . 2 Utility 7 | . 1 3 5 13 Weapon 3 | 1 3 3 4 2 Tool/Special . | . . . . . Unused Backups 41 | 2 4 3 . 32 Power 1 | 1 . . . . Propulsion 7 | 1 1 . . 5 Utility 22 | . . 2 . 20 Weapon 8 | . 3 1 . 4 Tool/Special 3 | . . . . 3 Average Slot Usage (%) 93 | . 99 94 99 89 Engine 12 | . 14 9 14 13 Treads 15 | . . 20 20 10 Wheel 11 | . 28 7 7 14 Storage 14 | . 14 14 14 14 Processor 13 | . 1 14 14 14 Energy Gun 1 | . 13 1 . 1 Energy Cannon 4 | . . 9 . . Ballistic Gun 8 | . 9 11 14 2 Slashing Weapon 9 | . . 4 13 14 Peak Build Rating 24 | 9 10 15 19 24 Average Rating 14 | 6 9 11 15 17 On Entrance 10 | . 9 8 15 19 Naked Turns . | . . . . . Heaviest Build 92 | 15 19 27 92 92 Greatest Support 40 | 20 20 40 40 26 Greatest Overweight (x) 5 | 1 . 1 5 5 Average Overweight (x) 2 | . . . 1 4 Largest Inventory Capacity 25 | 8 10 10 25 25 Average Capacity 16 | 7 8 10 13 24 Most Carried 25 | 8 10 10 22 25 Average Carried 14 | 6 7 9 11 20 Final Capacity 25 | 8 10 10 25 25 Final Carried 25 | 7 10 10 22 25 Class Distribution -------------------- 100% | Mutant Dominant Class ---------------- Mutant | -10/Materials Mutant | -10/Subcaves Mutant | -9/Recycling Mutant | -9/Scraptown Resources | -11 -10 -10 -9 -9 ----------- Run | Yrd Mat Sub Rec Scr Matter Collected 1007 | 313 168 376 80 70 Remotely . | . . . . . Salvage Created 1167 | 87 349 427 304 . Parts 80 | 12 26 28 14 . Haulers Intercepted 2 | . 2 . . . Recyclers Shooed . | . . . . . Parts Field Recycled . | . . . . . Retrieved Matter . | . . . . . Parts Self-Destructed 29 | . . 29 . . Prevented . | . . . . . Kills | -11 -10 -10 -9 -9 ------- Run | Yrd Mat Sub Rec Scr Combat Hostiles Destroyed 17 | . 5 9 3 . Melee 3 | . . . 3 . Guns 8 | . 4 4 . . Cannons 5 | . . 5 . . AOE 1 | . 1 . . . Classes Destroyed 9 | 1 4 3 1 . Tunneler 5 | 5 . . . . Hauler 2 | . 2 . . . Recycler 2 | . . . 2 . Operator 1 | . 1 . . . Watcher 1 | . 1 . . . Grunt 9 | . 5 4 . . Sentry 4 | . . 1 3 . Artisan 1 | . . 1 . . Subdweller 4 | . . 4 . . Best Kill Streak 2 | 2 2 2 1 . Combat Bots Only 2 | . 2 2 1 . Max Kills in Single Turn 1 | 1 1 1 1 . Gunslinging . | . . . . . Exploded 1 | . 1 . . . Melee 1 | . . . 1 . Uniques/NPCs Destroyed . | . . . . . Combat | -11 -10 -10 -9 -9 -------- Run | Yrd Mat Sub Rec Scr Hostile Shots Fired 100 | . 28 46 14 12 Missed 32 | . 8 16 3 5 Hits 68 | . 20 30 11 7 Projectile 68 | . 20 30 11 7 AOE 4 | . . 4 . . Critical Strikes 4 | . . 1 2 1 Damage Taken 1364 | . 253 790 162 159 Core 268 | . 53 69 47 99 Absorbed by Shields . | . . . . . Regen/Repaired (Parts) 12 | . 12 . . . Core Remaining (%) 100 | 100 . . . . Volleys Fired 124 | 20 40 64 . . Largest 2 | 1 2 2 . . Hottest 160 | 20 140 160 . . Shots Fired 193 | 20 68 105 . . Gun 120 | 20 60 40 . . Cannon 54 | . . 54 . . Launcher . | . . . . . Special 19 | . 8 11 . . Kinetic 85 | 20 27 38 . . Thermal 73 | . 8 65 . . Explosive . | . . . . . Electromagnetic 35 | . 33 2 . . Robot Hit Streak 11 | 5 5 11 . . Robot Miss Streak 4 | 3 2 4 . . Penetration Max . | . . . . . Secondary Targets 1 | . 1 . . . Max Gunslinging Chain 1 | . 1 . . . Shots Hit Robots 105 | 13 30 50 12 . Core Hits 41 | 6 15 16 4 . Critical Kills . | . . . . . Critical Parts Destroyed . | . . . . . Critical Strikes 1 | . . . 1 . Sever 1 | . . . 1 . Melee Attacks 35 | . . 17 17 1 Impact . | . . . . . Slashing 35 | . . 17 17 1 Piercing . | . . . . . Sneak Attacks 6 | . . . 6 . Combat Hostiles 2 | . . . 2 . Follow-up Attacks . | . . . . . Damage Inflicted 2162 | 172 526 837 627 . Guns 967 | 172 421 374 . . Cannons 463 | . . 463 . . Explosions 105 | . 105 . . . Melee 627 | . . . 627 . Ramming . | . . . . . Kinetic 721 | 172 175 374 . . Thermal 568 | . 105 463 . . Explosive . | . . . . . Electromagnetic 246 | . 246 . . . Impact . | . . . . . Slashing 627 | . . . 627 . Piercing . | . . . . . Highest Corruption . | . . . . . Average Corruption . | . . . . . Corruption Purged . | . . . . . Corruption Blocked . | . . . . . Overload Shots . | . . . . . Overflow Damage 95 | . . 5 90 . Projectiles 5 | . . 5 . . Explosions . | . . . . . Melee 90 | . . . 90 . Knockbacks . | . . . . . Impact . | . . . . . Kinetic . | . . . . . Secondary . | . . . . . Self-Inflicted Damage . | . . . . . Shots . | . . . . . Rammed . | . . . . . Targets Rammed . | . . . . . Kicked . | . . . . . Crushed . | . . . . . Highest Temperature 252 | . 60 252 4 . Average Temperature 26 | . 23 32 3 . Received Heat Transfer 691 | . 129 466 90 6 Siege Activations . | . . . . . Martial Activations . | . . . . . Shielding Activations . | . . . . . Robots Disrupted . | . . . . . Combat Hostiles . | . . . . . Robots Corrupted . | . . . . . Combat Hostiles . | . . . . . Parts Fried . | . . . . . Impact Corruptions . | . . . . . Robots Melted . | . . . . . Combat Hostiles . | . . . . . Parts Melted . | . . . . . Heat Transferred 1062 | . 100 962 . . Parts Sabotaged . | . . . . . Parts Stolen . | . . . . . Parts Stripped . | . . . . . Power Chain Reactions 3 | . 3 . . . Alert | -11 -10 -10 -9 -9 ------- Run | Yrd Mat Sub Rec Scr Maximum Alert Level . | . . . . . Low Security (%) 100 | 100 100 . 100 . Level 1 . | . . . . . Level 2 . | . . . . . Level 3 . | . . . . . Level 4 . | . . . . . Level 5 . | . . . . . High Security . | . . . . . Max Security . | . . . . . Peak Influence 114 | 5 114 . 91 . Initial 91 | . . . 91 . Average 30 | 1 54 . 24 . Influence Increases 971 | 25 233 450 263 . Destroy 0b10 Robot/C 260 | . 100 100 60 . Destroy 0b10 Robot/NC 55 | 25 20 . 10 . Destroy Leader 56 | . 36 20 . . Successful Hack 26 | . . . 26 . Select Force Hacks 180 | . 30 . 150 . Disable Machine 30 | . 15 . 15 . Destroy Structure 19 | . 17 . 2 . Lose Combat Pursuer 345 | . 15 330 . . Influence Decreases 971 | 25 226 266 454 . Entered New Map 104 | . . 4 100 . Time Decay 849 | 25 226 244 354 . Lost Part 18 | . . 18 . . Squads Dispatched 2 | . 2 . . . Investigation 1 | . 1 . . . Extermination . | . . . . . Reinforcement 1 | . 1 . . . Assault . | . . . . . Garrison . | . . . . . Intercept . | . . . . . Searches Triggered . | . . . . . Construction Impeded . | . . . . . Haulers Reinforced . | . . . . . Active Scanning Responses . | . . . . . Cargo Convoy Interrupts . | . . . . . Stealth | -11 -10 -10 -9 -9 --------- Run | Yrd Mat Sub Rec Scr Distress Signals 1 | . . . 1 . Communications Jammed . | . . . . . Distress Signals . | . . . . . Times Spotted 43 | . 13 24 2 4 Peak Tracking Total 4 | . 4 2 1 4 Tactical Retreats 11 | . 1 10 . . Traps | -11 -10 -10 -9 -9 ------- Run | Yrd Mat Sub Rec Scr Traps Triggered 2 | . . 2 . . Indirectly . | . . . . . Trap Hack Attempts . | . . . . . Triggered . | . . . . . Disarmed . | . . . . . Reprogrammed . | . . . . . Reused . | . . . . . Traps Extracted . | . . . . . Installed . | . . . . . Triggered . | . . . . . Machines | -11 -10 -10 -9 -9 ---------- Run | Yrd Mat Sub Rec Scr Machines Disabled 4 | . 1 1 1 1 Max in Single Turn 1 | . 1 1 1 1 Machines Repaired . | . . . . . Machines Dismantled . | . . . . . Machines Sabotaged . | . . . . . Overloaded Fab Kills . | . . . . . Hacking | -11 -10 -10 -9 -9 --------- Run | Yrd Mat Sub Rec Scr Machines Accessed 25 | . 6 2 10 7 Terminals 9 | . 4 . 5 . Fabricators . | . . . . . Repair Stations 1 | . 1 . . . Recycling Units 6 | . 1 . 5 . Scanalyzers . | . . . . . Garrison Access . | . . . . . Total Hacks 75 | . 11 6 29 29 Successful 55 | . 5 6 15 29 Failed 19 | . 6 . 13 . Catastrophic 8 | . 2 . 6 . Database Lockouts 1 | . . . 1 . Manual 33 | . 8 . 25 . Terminals 27 | . 8 . 19 . Fabricators . | . . . . . Repair Stations 2 | . 2 . . . Recycling Units 11 | . 1 . 10 . Scanalyzers . | . . . . . Garrison Access . | . . . . . Terminal Hacks 41 | . . 6 6 29 Record 33 | . . 5 . 28 Part Schematic 5 | . . . 5 . Robot Analysis 1 | . . . 1 . Proto ID Catalog 2 | . . 1 . 1 Fabricator Hacks . | . . . . . Repair Station Hacks 2 | . 2 . . . Scan Component 1 | . 1 . . . Repair 1 | . 1 . . . Recycling Unit Hacks 3 | . . . 3 . Report Inventory 3 | . . . 3 . Scanalyzer . | . . . . . Garrison Access Hacks . | . . . . . Unauthorized Hacks 9 | . 3 . 6 . Terminals 3 | . 2 . 1 . Assimilate 1 | . 1 . . . Botnet 2 | . 1 . 1 . Fabricators . | . . . . . Repair Stations . | . . . . . Recycling Units 6 | . 1 . 5 . Tunnel 6 | . 1 . 5 . Scanalyzers . | . . . . . Garrison Access . | . . . . . Data Cores Recovered . | . . . . . Used . | . . . . . Hacking Detections 10 | . 5 . 5 . Full Trace Events 3 | . . . 3 . Feedback Events . | . . . . . Feedback Blocked . | . . . . . Robot Schematics Acquired . | . . . . . Robots Built . | . . . . . Authchips . | . . . . . Time . | . . . . . Total Robot Build Rating . | . . . . . Part Schematics Acquired 5 | . . . 5 . Parts Built . | . . . . . Authchips . | . . . . . Time . | . . . . . Total Part Build Rating . | . . . . . Parts Repaired 1 | . 1 . . . Time 26 | . 26 . . . Parts Recycled . | . . . . . Recycled Matter . | . . . . . Retrieved Matter . | . . . . . Retrieved Components . | . . . . . Parts Scanalyzed . | . . . . . Part Schematics Acquired . | . . . . . Parts Damaged . | . . . . . Bothacking | -11 -10 -10 -9 -9 ------------ Run | Yrd Mat Sub Rec Scr Used RIF Installer . | . . . . . Robots Hacked . | . . . . . Non-combat . | . . . . . Combat . | . . . . . Robot Hacks Applied . | . . . . . Relay Couplers Released . | . . . . . Fabnet Peak Effective % . | . . . . . Robots Rewired . | . . . . . Allies Hacked . | . . . . . Hacks Repelled . | . . . . . Allies | -11 -10 -10 -9 -9 -------- Run | Yrd Mat Sub Rec Scr Total Allies . | . . . . . Largest Group . | . . . . . Highest-Rated Group . | . . . . . Highest-Rated Ally . | . . . . . Total Orders . | . . . . . Ally Attacks . | . . . . . Total Damage . | . . . . . Kills . | . . . . . Allies Corrupted . | . . . . . Allies Melted . | . . . . . Intel | -11 -10 -10 -9 -9 ------- Run | Yrd Mat Sub Rec Scr Active Infowar (turns) 550 | 61 489 . . . Terrain 550 | 61 489 . . . Robot Analysis Total 1 | . . . 1 . Derelict Logs Recovered 6 | . . 2 . 4 Drone Launches . | . . . . . Drone Recoveries . | . . . . . Exploration | -11 -10 -10 -9 -9 ------------- Run | Yrd Mat Sub Rec Scr Turns Passed 11674 | 197 523 4963 1210 4781 Spaces Moved 6403 | 158 426 2505 600 2714 Core 7 | 7 . . . . Treads 2984 | . . 2505 479 . Legs . | . . . . . Wheels 3412 | 151 426 . 121 2714 Hover . | . . . . . Flight . | . . . . . Fastest Speed 50 | 50 80 160 160 100 Average Speed 169 | 79 80 181 190 172 Slowest Speed 320 | 100 80 260 320 175 Overloaded Moves . | . . . . . Propulsion Burnouts . | . . . . . Robots Hopped . | . . . . . Potential Cave-ins . | . . . . . Cave-ins Triggered . | . . . . . Exploration Rate (%) 71 | 6 59 97 99 94 Regions Visited 4 Branch Regions 3 Pre-discovered Areas 7 | . 1 1 5 . Known Exits Taken . | . . . . . Unknown Exits Taken 4 | 1 1 1 1 . Scrap Searched 12 | . . 7 . 5 Spaces Dug 22 | . 8 12 2 . Terrain Destroyed 31 | . 16 13 2 . Melee 10 | . . 8 2 . Projectile 13 | . 8 5 . . AOE 8 | . 8 . . . Terrain Rammed . | . . . . . Walls Destroyed . | . . . . . Machines Disabled . | . . . . . Actions | -11 -10 -10 -9 -9 --------- Run | Yrd Mat Sub Rec Scr Total 6969 | 206 526 2762 639 2836 Wait 242 | 11 34 129 . 68 Move 6399 | 157 425 2504 599 2714 Hop . | . . . . . Pick Up 62 | 9 10 9 12 22 Fast Attach 21 | 7 2 8 2 2 Attach 6 | . 1 3 . 2 Detach 5 | . 1 . . 4 Swap 25 | . 4 13 5 3 Drop 49 | 2 9 15 3 20 Fire 124 | 20 40 64 . . Melee 35 | . . 17 17 1 Ram . | . . . . . Kick . | . . . . . Crush . | . . . . . Escape Stasis . | . . . . . Rewire . | . . . . . Trap . | . . . . . Miscellaneous 1 | . . . 1 . Route ------- -11/Scrapyard -10/Materials (discovered 4 exits: [*Mat x2] / [*Min] / *Sub) -10/Subcaves (discovered 3 exits: [*Mat x2] / *Rec) -9/Recycling (discovered 2 exits: [*Fac] / *Scr) -9/Scraptown (discovered 2 exits: [*Fac x2]) History --------- Turn | Location | Event 2 | -11/Scrapyard | Met Revision 17 35 | -11/Scrapyard | Discovered new exit (range 16) 198 | -11/Scrapyard | Entered Materials 313 | -10/Materials | Build established: Mutant 318 | -10/Materials | Discovered new exit (range 7) 414 | -10/Materials | Discovered new exit (range 16) 592 | -10/Materials | Repaired EM Pulse Gun 600 | -10/Materials | Discovered new exit (range 11) 613 | -10/Materials | Discovered new exit (range 13) 698 | -10/Materials | Derelicts attacked the area 721 | -10/Materials | Entered Subcaves 747 | -10/Subcaves | Learned location of Zion (-7) 805 | -10/Subcaves | Visited 4L-MR0's lab 834 | -10/Subcaves | Found Powered Cannon 1595 | -10/Subcaves | Shifting Twisted Machinery released Battle Cannon 1727 | -10/Subcaves | Disturbed a concealed Subdweller 1760 | -10/Subcaves | Disturbed a concealed Subdweller 2599 | -10/Subcaves | Learned Materials trap positions 2697 | -10/Subcaves | Discovered new exit (range 15) 3150 | -10/Subcaves | Discovered new exit (range 5) 3384 | -10/Subcaves | Visited Clippyterm 3389 | -10/Subcaves | Learned 40 Factory zone layouts 3389 | -10/Subcaves | Learned Factory garrison access intel 3686 | -10/Subcaves | Shifting Twisted Machinery released Ripper 3686 | -10/Subcaves | Shifting Twisted Machinery released Sub. Machine Gun 3895 | -10/Subcaves | Shifting Twisted Machinery released Sub. Shrapnel Launcher 3895 | -10/Subcaves | Shifting Twisted Machinery released Sub. Power Source 4008 | -10/Subcaves | Shifting Twisted Machinery released Spk. Treads 5064 | -10/Subcaves | Discovered new exit (range 3) 5684 | -10/Subcaves | Entered Recycling 6305 | -9/Recycling | Discovered new exit (range 13) 6599 | -9/Recycling | Core integrity fell below 50% 6843 | -9/Recycling | Scanned before Scraplab entrance 6868 | -9/Recycling | Entered Scraplab 6891 | -9/Recycling | Discovered new exit (range 3) 6894 | -9/Recycling | Entered Scraptown 7239 | -9/Scraptown | Visited Cyclists 7268 | -9/Scraptown | Visited The Evicted 7389 | -9/Scraptown | Visited Red Mages 7790 | -9/Scraptown | Discovered new exit (range 5) 7898 | -9/Scraptown | Scanned Subdweller tech in exchange for log data 7907 | -9/Scraptown | Learned Factory stockpile data 7909 | -9/Scraptown | Learned Research garrison access intel 7911 | -9/Scraptown | Learned Research terminal intel 7965 | -9/Scraptown | Visited Cave Peace 7975 | -9/Scraptown | Heard Great Nut preacher, LISTEN AND RECITE! 8021 | -9/Scraptown | Visited Supply Room 8065 | -9/Scraptown | Visited Artisan Demo Area 8173 | -9/Scraptown | Visited Junk Repository 8758 | -9/Scraptown | Visited UFD Registry 8758 | -9/Scraptown | Registered with UFD as "Nulldriver" 8901 | -9/Scraptown | Visited Science Guys 8969 | -9/Scraptown | Visited Chapter 10 9046 | -9/Scraptown | Visited Scrap Suit Storage 9071 | -9/Scraptown | Visited Science Testing Area 9157 | -9/Scraptown | Visited Scrapoid Pod Storage 9206 | -9/Scraptown | Visited Botcube Research 9234 | -9/Scraptown | Visited Research Penetration Think Tank 9279 | -9/Scraptown | Visited Abandonware Association 9318 | -9/Scraptown | Learned abandonware demo "ERRANTS.EXE" 9388 | -9/Scraptown | Visited LU-1G1's Boring Crew 9855 | -9/Scraptown | Discovered new exit (range 5) 11616 | -9/Scraptown | Met Optimus 11616 | -9/Scraptown | Accepted into 0bPrime 11664 | -9/Scraptown | Attacked by Scraptown defenders 11675 | -9/Scraptown | Destroyed by Optimus with Helical Railgun Last Messages --------------- Optimus: I'm glad you stopped by to talk to me, otherwise I wouldn't know to prepare for this possibility. Looking forward to working with you, Nulldriver! 11664_ Machine disabled. 11664_ ANNOUNCEMENT: Intruder alert! Defend Scraptown! 11665_ Optimus: "My trust in you was sorely misplaced, Nulldriver!" 11665_ Slug penetrates Wall. 11665_ Penetrated by Slug. 11665_ Slug penetrates Machine. 11665_ Machine disabled. 11667_ Penetrated by Slug. 11667_ Ion Engine destroyed. 11667_ Machine disabled. 11673_ Slug penetrates Supplies. 11673_ Supplies damaged. 11675_ Penetrated by Slug. 11675_ Slug penetrates Wall. Map ----- +----------------------------------------------------+ | ?????????????????????????????????????????????????? | | ?????????????????????????????????????????????????? | | ?????????????????????????????????????????????????? | | ?????????????????????????????????????????????????? | | ?????????????????????????????????????????????????? | | ?????????????????????????????????????????????????? | | ?????????????????????????????????????????????????? | | ?????????????????????????????????????????????????? | | ?????????????????????????????????????????????????? | | ?????????????????????????????????????????????????? | | ???????????????????????????????????????#####?????? | | ???????????????????????????????????????#"""#?????? | | ????????###?###############???####?????#" "#?????? | | ????????"""?#"""##""|##"""#??## ##????# < #?????? | | ????????"" ##""!##"" ##!!"#### ###### ##????? | | ???????#"" #????? | | ???????# #????? | | ???????####################### ###########????? | | ????????????????????????###??## ##??????????????? | | ####????????????????????# #???# #???????????????? | | """#???############?#####;##### #???????????????? | | """#???#""""""""""?#""" ## #???????????????? | | """#???# " ##?#"" ## ###########?????? | | |""#???#"" #?# ";#" ## # #?????? | | """#???#"" #?#" ;#" ## # #?????? | | ""#???#"""" #?# " @"" ## # #?????? | | #???#"" " #?# "## ## # #?????? | | " #???#"""" #?# "##" ## # #?????? | | "&#???#"" #?# """ "## # #?????? | | "#???#" #### h ## # #?????? | | #???# ##"""" 3"""## # #?????? | | # ##???###### ##########; ##### ## ########?????? | | # ########### ##########; ##### ## ###########??? | | " """"""""""" """"""""""pg""""" "" "## #"""""#??? | | "## !! !!#??? | | "## ##"# | | "## X" # | | "## # | | # | | """""""""""""""""""""""""""" "## !! !! !# | | """""""""""""""""""""""""""" "## #"""""#""# | | ""###### ################"" "##########??? | | ""# ##????????#"" "########????? | | ""# X"#????????#"" "##"""" #????? | | ""# "" "" ##????????#"" "## "#????? | | ""# "" "" X"#??????###"" "## "#????? | | ""# " " ######### #"" "## !"#????? | | "" "" "#????? | | "" "" !!! "## "#????? | | ""# " " ######### #""!! "## "#????? | +----------------------------------------------------+ Best States ------------- Heat Dissipation 25 Energy Generation 15 Energy Capacity 250 Matter Stores 300 Matter Capacity 300 Sight Range 16 Terrain Scan Range 16 Terrain Scan Density 10 Evasion (%) 44 Targeting Accuracy 5 Recoil Reduction 2 Authchip Count 11 Item Schematics ----------------- Salvage Targeting Computer | -9/Recycling | Hacked Med. Storage Unit | -9/Recycling | Hacked Lrg. Storage Unit | -9/Recycling | Hacked Med. Armor Plating | -9/Recycling | Hacked ECM Suite | -9/Recycling | Hacked Robot Schematics ------------------ None Fabricated ------------ Nothing Repaired ---------- EM Pulse Gun | 73% | -10/Materials Alien Tech Used ----------------- None Achievements -------------- None Challenges ------------ None Game ------ Seed ElectronRelayProtection Manual? 0 Play Time 01:44:56 Cumulative 400.7 hours Start 2025.08.26 @ 22:16:40 End 2025.08.26 @ 23:55:53 Sessions 1 Manual Loads 0 Difficulty Rogue Special Mode None Game No. 130 Rogue 128 Adventurer 0 Explorer 2 Win Type - Total 10 Types 8/0/1/1/0/0/0/0/0/0 Lore% 82 Gallery% 76 Achievement% 76 Wizard Run 0 Options --------- Layout 2 ASCII 0 Keyboard 1 Movement Numpad Keybinds 0 Fullscreen 1 Font 24/Smallcaps Map View 50x44 Zoom Use 0% Tactical HUD 1 Map Filters NONE Filters NONE Steam 0 RUN: 5fc950ac-7f99-4f0d-84b2-bc829f6be7de